[Event "4NCL 2022-2023"]
[Site "Daventry"]
[Date "2023.02.12"]
[Round "6.25"]
[White "Rudd, Jack"]
[Black "Jones, Gawain C B"]
[Result "0-1"]
[ECO "E74"]
[WhiteElo "2303"]
[BlackElo "2617"]
[Annotator "TA"]
[PlyCount "86"]
[EventDate "2022.10.20"]
[EventType "team-tourn"]
[EventCountry "ENG"]
[SourceTitle "playchess.com"]
[Source "ChessBase"]
[SourceQuality "1"]
[TimeControl "40/6000+30:2400+30"]

{[%evp 15,85,27,39,26,29,34,45,19,22,25,44,20,81,15,23,13,4,32,41,0,0,0,7,22,39,-58,-41,-53,-29,-31,0,-112,-62,-87,-85,-94,-94,-92,0,-110,-16,-20,-18,-39,-42,-42,-42,-35,-35,-122,-132,-131,-143,-143,-132,-262,-249,-411,-372,-405,-379,-617,-678,-714,-697,-1053,-1023,-29993,-29994,-29994,-29995,-29999]} 1. c4 {[%emt 0:00:01]} Nf6 {[%emt 0:01:19]} 2. d4 {[%emt 0:00:08]} g6 {[%emt 0:00:04]} 3. Nc3 {[%emt 0:00:05]} Bg7 {[%emt 0:00:05]} 4. e4 {[%emt 0:00:05]} d6 {[%emt 0:00:04]} 5. Be2 {[%emt 0:00:08]} O-O {[%emt 0:00:10]} 6. Bg5 {[%emt 0:00:03]} c5 {[%emt 0:00:08]} 7. d5 {[%emt 0:00:04]} h6 {[%emt 0:00:05]} 8. Bf4 {[%emt 0:00:22]} e6 {[%emt 0:00:34]} 9. Qd2 {[%emt 0:01:49] E74: King's Indian: Averbakh Variation: 6...c5.} exd5 {[%emt 0:00:28]} 10. cxd5 {[%emt 0:00:21] [#]} g5 $146 {[%emt 0:03:34]} ({Predecessor:} 10... Re8 11. f3 a6 12. a4 h5 13. a5 Qc7 14. Bd3 Nbd7 15. Nge2 Ne5 16. O-O Nxd3 17. Qxd3 {½-½ Krutti,V (2379)-Troyke,C (2247) EU-ch blitz Tallinn 2019 (7)}) 11. Be3 {[%emt 0:00:21] And now h4 would win. White is slightly better.} b5 $1 {[%emt 0:01:01]} 12. f3 {[%emt 0:01:42]} b4 {[%emt 0:08:46]} 13. Nd1 {[%emt 0:00:32]} Nh7 {[%emt 0:05:38]} (13... Nh5 $1 $11 {keeps the balance.}) 14. g4 {[%emt 0:00:41]} ({White should try} 14. h4 $16) 14... Nd7 {[%emt 0:01:43] [#]} 15. h4 $1 {[%emt 0:00:57]} Ne5 {[%emt 0:00:57]} ({But not} 15... gxh4 16. Bxh6 Ne5 17. Bxg7 Kxg7 18. Nh3 $16) 16. hxg5 {[%emt 0:00:37]} hxg5 {[%emt 0:00:31]} 17. Rc1 {[%emt 0:01:23]} a5 {[%emt 0:05:05]} 18. Bf2 {[%emt 0:01:34]} Qf6 {[%emt 0:03:00]} 19. Ne3 {[%emt 0:00:09]} (19. Kf1 {looks sharper.} Re8 20. Ne3 a4 21. Re1) 19... Ng6 {[%emt 0:10:28]} (19... Re8 {keeps more tension.} 20. Kf1 a4 21. Rb1 Bd7) 20. b3 {[%emt 0:01:45]} ({Reject} 20. Nf5 Qxb2 21. Nxg7 (21. Nxd6 Bc3 $17) 21... Qxg7 $11) (20. Rb1 $14) 20... a4 $1 $15 {[%emt 0:04:06]} 21. Bg3 {[%emt 0:02:36]} axb3 {[%emt 0:05:27]} 22. axb3 {[%emt 0:01:02]} Nf4 {[%emt 0:03:58]} 23. Nh3 {[%emt 0:07:18]} (23. Bb5 $11) 23... Qb2 {[%emt 0:06:14]} (23... Nxe2 $17 24. Kxe2 Re8) 24. Qxb2 {[%emt 0:03:05]} Bxb2 {[%emt 0:00:24]} 25. Rc2 {[%emt 0:00:16]} Ra1+ {[%emt 0:02:55]} 26. Bd1 {[%emt 0:01:12][%cal Oh3f4] [#] Hoping for Nxf4!} Bc3+ {[%emt 0:09:11]} (26... Be5 $1 $17) 27. Kf2 {[%emt 0:00:36]} (27. Rxc3 $1 $11 bxc3 28. Nxf4 gxf4 29. Bxf4) 27... Nxh3+ {[%emt 0:03:06]} ({Black should play} 27... c4 $17 28. Nxc4 Nxh3+ {[%mdl 64] Overworked Piece} 29. Rxh3 Rxd1 30. Bxd6 Re8) 28. Rxh3 $11 {[%emt 0:00:09]} Rd8 {[%emt 0:00:15]} 29. Be2 {[%emt 0:02:43]} (29. Rh6 {is more complex.} f6 30. Be2 Bd4 31. Rd2) 29... Bd4 {[%emt 0:03:02]} 30. Bc4 {[%emt 0:05:19]} Nf8 {[%emt 0:07:35]} 31. Ke2 {[%emt 0:00:40]} Ng6 {[%emt 0:00:52]} 32. Nf5 {[%emt 0:01:36]} (32. Bb5 $15) 32... Bxf5 $17 {[%emt 0:07:58]} 33. gxf5 {[%emt 0:00:17] White is weak on the dark squares} Ne5 {[%emt 0:00:13] Black is more active.} 34. Bxe5 {[%emt 0:01:01]} Bxe5 {[%emt 0:00:08]} 35. Rh5 {[%emt 0:01:55] [#]} (35. Kf2 $17) 35... Rg1 $1 $19 {[%emt 0:02:42] White must now prevent ...Ra8.} 36. Bb5 $2 {[%emt 0:01:11]} (36. f4 {might work better.} Bxf4 37. Kf2) 36... Ra8 {[%emt 0:00:28]} 37. Kd3 {[%emt 0:01:39]} Kg7 {[%emt 0:02:23]} 38. Rh3 $2 {[%emt 0:01:50]} (38. Bd7) 38... Ra3 {[%emt 0:02:23]} 39. Bc4 {[%emt 0:00:42]} Bf4 {[%emt 0:01:07]} 40. Rb2 {[%emt 0:00:48]} Raa1 {[%emt 0:03:15] ( -> ...Rad1+)} 41. Bb5 {[%emt 0:40:10]} Rad1+ {[%emt 0:40:30] Black mates.} 42. Ke2 {[%emt 0:00:05]} Rde1+ {[%emt 0:00:53]} 43. Kf2 {[%emt 0:00:07]} Be3# {[%emt 0:00:36] Weighted Error Value: White=0.63/Black=0.11 (very precise)} 0-1

[Event "4NCL 2022-2023"]
[Site "Daventry"]
[Date "2023.02.12"]
[Round "6.26"]
[White "Rowson, Jonathan"]
[Black "Cooper, John G"]
[Result "1-0"]
[ECO "D32"]
[WhiteElo "2547"]
[BlackElo "2243"]
[Annotator "TA"]
[PlyCount "45"]
[EventDate "2022.10.20"]
[EventType "team-tourn"]
[EventCountry "ENG"]
[SourceTitle "playchess.com"]
[Source "ChessBase"]
[SourceQuality "1"]
[TimeControl "40/6000+30:2400+30"]

{[%evp 13,45,0,1,0,0,0,0,-10,0,0,20,0,0,-18,0,-22,6,-11,24,25,26,16,20,0,73,44,234,240,253,245,253,254,329,296]} 1. d4 {[%emt 0:05:25]} d5 {[%emt 0:00:16]} 2. c4 {[%emt 0:00:11]} e6 {[%emt 0:00:18]} 3. Nc3 {[%emt 0:00:22]} c5 {[%emt 0:00:18]} 4. cxd5 {[%emt 0:00:37]} exd5 {[%emt 0:00:10]} 5. Nf3 {[%emt 0:00:23]} Nc6 {[%emt 0:00:15]} 6. Bf4 {[%emt 0:04:00]} Nf6 {[%emt 0:01:07]} 7. e3 {[%emt 0:00:03]} c4 {[%emt 0:01:45] 7...Be7 is vanishing.} 8. a3 {[%emt 0:03:04] D32: Tarrasch Defence: Sidelines and lines without g3.} Be7 {[%emt 0:05:55]} 9. Be2 {[%emt 0:01:52]} O-O {[%emt 0:00:55]} 10. O-O {[%emt 0:03:06] The position is equal.} Na5 {[%emt 0:23:26]} 11. Qc2 {[%emt 0:10:32] [#]} Nh5 $146 {[%emt 0:06:05]} ({Predecessor:} 11... a6 12. Nd2 b5 13. Bf3 Be6 14. Rad1 Nc6 15. Be5 Ne8 16. b3 Rc8 17. bxc4 bxc4 {½-½ Agrest,E (2525)-Hansen,L (2570) SWE-DEN Skaenninge 1998 (2)}) 12. Be5 {[%emt 0:00:59]} (12. Ne5 $5 {[%cal Re2h5]} Nxf4 13. exf4 $11) 12... f6 {[%emt 0:07:40]} 13. Bg3 {[%emt 0:00:49]} (13. Rad1 $5 {[%cal Rf3g5]}) 13... Nxg3 {[%emt 0:01:32]} 14. hxg3 {[%emt 0:00:17]} Be6 {[%emt 0:01:28]} 15. Rad1 {[%emt 0:03:23]} Qd7 {[%emt 0:04:35]} 16. e4 {[%emt 0:03:17]} dxe4 {[%emt 0:00:52]} 17. d5 {[%emt 0:01:40]} Bf7 {[%emt 0:05:18]} ({But not} 17... exf3 18. dxe6 Qxe6 19. Bxf3 $18) 18. Nxe4 {[%emt 0:00:49]} Rfd8 {[%emt 0:16:37]} (18... Bxd5 $2 19. Nc3 $18) (18... Rfe8 $11) 19. g4 {[%emt 0:09:30] Strongly threatening d6. White is more active.} ({Much weaker is} 19. Bxc4 Nxc4 20. Qxc4 Bxd5 $15) (19. d6 $5 Bf8 $8 20. g4 $11) 19... Qc7 {[%emt 0:06:50] [#] Black cannot hold the game after this.} (19... Bxd5 $2 20. Nc3 Qe6 21. Qa4 Bxf3 22. Bxf3 $18) (19... Qxg4 $2 20. d6 Qd7 21. dxe7 Qxe7 22. Ng3 $18) ({Better is} 19... Bg6 $14) 20. b4 $18 {[%emt 0:02:47]} Rxd5 {[%emt 0:02:15]} 21. Rxd5 {[%emt 0:02:02]} ({Don't do} 21. bxa5 $6 Rxa5 22. Rd4 Bc5 $16) 21... Bxd5 {[%emt 0:00:09]} 22. bxa5 {[%emt 0:00:05]} Bxa3 {[%emt 0:00:16]} 23. Nc3 {[%emt 0:09:56] Weighted Error Value: White=0.11 (very precise) /Black=0.34} 1-0

[Event "4NCL 2022-2023"]
[Site "Daventry"]
[Date "2023.02.12"]
[Round "6.27"]
[White "Redmond, John P."]
[Black "Adair, James R"]
[Result "0-1"]
[ECO "A01"]
[WhiteElo "2196"]
[BlackElo "2449"]
[Annotator "TA"]
[PlyCount "61"]
[EventDate "2022.10.20"]
[EventType "team-tourn"]
[EventCountry "ENG"]
[SourceTitle "playchess.com"]
[Source "ChessBase"]
[SourceQuality "1"]
[TimeControl "40/6000+30:2400+30"]

{[%evp 9,61,6,13,6,20,17,16,21,21,20,20,14,11,25,19,8,51,54,71,69,62,7,29,0,16,0,9,-10,-21,-37,-25,-147,-132,-133,-126,-264,-264,-268,-249,-318,-320,-317,-311,-316,-309,-727,-722,-1097,-1095,-1116,-1072,-1189,-1106,-1696]} 1. b3 {[%emt 0:03:24]} d5 {[%emt 0:08:57]} 2. Bb2 {[%emt 0:00:11]} Bf5 {[%emt 0:00:19]} 3. d3 {[%emt 0:02:29]} e6 {[%emt 0:01:44]} 4. Nd2 {[%emt 0:00:16]} Nf6 {[%emt 0:00:54]} 5. g3 {[%emt 0:00:19]} Be7 {[%emt 0:05:58]} 6. Bg2 {[%emt 0:00:10] A01: Nimzowitsch-Larsen Opening.} h6 {[%emt 0:00:39]} 7. e4 {[%emt 0:05:33]} Bh7 {[%emt 0:01:14]} 8. Nh3 {[%emt 0:02:48] The position is equal.} a5 {[%emt 0:12:43]} 9. a3 {[%emt 0:08:59]} c6 {[%emt 0:03:18]} 10. O-O {[%emt 0:03:35]} Na6 {[%emt 0:10:22]} 11. Qe2 {[%emt 0:10:35]} O-O {[%emt 0:07:38] [#]} 12. Kh1 $146 {[%emt 0:07:12]} ({Predecessor:} 12. f3 a4 13. b4 c5 14. b5 Nc7 15. c4 Nd7 16. Nf2 Bf6 17. e5 Be7 18. f4 {1-0 Shimanov,A (2581)-Bortnyk,O (2604) Titled Tuesday intern op 10th May Late blitz 2022 (4)}) 12... a4 {[%emt 0:01:53]} 13. b4 {[%emt 0:04:07]} b5 {[%emt 0:09:43]} 14. c4 {[%emt 0:18:21]} c5 {[%emt 0:12:58]} 15. cxd5 {[%emt 0:20:46]} (15. cxb5 $14 Nc7 16. bxc5 (16. b6 Nb5 $14) 16... Nxb5 17. Rac1) 15... exd5 $11 {[%emt 0:01:24]} 16. e5 {[%emt 0:01:18]} (16. bxc5 {keeps more tension.} Nxc5 17. Nf4 g5 18. Bxf6 Bxf6 19. Rac1) 16... Ne8 {[%emt 0:00:55]} 17. bxc5 {[%emt 0:02:15]} Nxc5 {[%emt 0:01:12]} 18. Nf4 {[%emt 0:00:57] And now d4 would win.} Nc7 {[%emt 0:00:34]} 19. Rac1 {[%emt 0:05:54]} Rb8 {[%emt 0:03:46]} 20. Bh3 {[%emt 0:07:04] [#]} (20. d4 $11 {keeps the balance.} N5e6 21. Nd3) 20... N7e6 $1 $17 {[%emt 0:08:08]} 21. Nxe6 {[%emt 0:02:15]} (21. d4 $2 Nxf4 22. gxf4 Nd3 $19) 21... fxe6 {[%emt 0:00:32]} 22. Rxc5 {[%emt 0:01:17] Now White is beyond hope.} Bxc5 $19 {[%emt 0:00:09]} 23. Bxe6+ {[%emt 0:00:16]} Kh8 {[%emt 0:00:07]} 24. f4 {[%emt 0:00:38]} b4 {[%emt 0:03:31]} 25. axb4 {[%emt 0:00:15]} Bxb4 {[%emt 0:00:06]} 26. Nf3 {[%emt 0:00:48]} Qa5 {[%emt 0:02:13]} 27. Nd4 $2 {[%emt 0:00:30] [#]} (27. Bd7 Bc5 28. Ba1 (28. Bd4 $2 Bxd4 29. Nxd4 Qc3 $19)) 27... Bc3 {[%emt 0:03:18] Black is clearly winning.} 28. Bxc3 {[%emt 0:02:18]} Qxc3 {[%emt 0:00:07]} 29. Qe3 {[%emt 0:00:00]} Qxd3 {[%emt 0:01:04]} 30. Qxd3 {[%emt 0:00:27]} Bxd3 {[%emt 0:00:05]} 31. Nc6 {[%emt 0:00:00] Weighted Error Value: White=0.62/Black=0.05 (flawless)} 0-1

[Event "4NCL 2022-2023"]
[Site "Daventry"]
[Date "2023.02.12"]
[Round "6.28"]
[White "Wells, Peter K"]
[Black "Macfarlane, Donald"]
[Result "1/2-1/2"]
[ECO "E16"]
[WhiteElo "2361"]
[BlackElo "2145"]
[Annotator "TA"]
[PlyCount "53"]
[EventDate "2022.10.20"]
[EventType "team-tourn"]
[EventCountry "ENG"]
[SourceTitle "playchess.com"]
[Source "ChessBase"]
[SourceQuality "1"]
[TimeControl "40/6000+30:2400+30"]

{[%evp 17,40,17,47,14,27,24,30,12,14,15,13,12,14,19,13,0,0,0,0,0,0,0,16,21,17]} 1. d4 {[%emt 0:06:42]} Nf6 {[%emt 0:02:09]} 2. c4 {[%emt 0:00:36]} e6 {[%emt 0:03:05]} 3. Nf3 {[%emt 0:00:39]} Bb4+ {[%emt 0:01:05]} 4. Bd2 {[%emt 0:02:11]} c5 {[%emt 0:02:40]} 5. Bxb4 {[%emt 0:06:13]} cxb4 {[%emt 0:00:09]} 6. g3 {[%emt 0:00:33]} b6 {[%emt 0:14:13]} 7. Bg2 {[%emt 0:03:11]} Bb7 {[%emt 0:00:59]} 8. O-O {[%emt 0:10:43]} O-O {[%emt 0:00:20]} 9. a3 {[%emt 0:06:53]} Qe7 {[%emt 0:01:53]} 10. Qb3 {[%emt 0:18:34] E16: Queen's Indian: 4 g3 Bb7 5 Bg2 Bb4+.} Nc6 {[%emt 0:12:42]} 11. Nbd2 {[%emt 0:05:33]} Rfc8 {[%emt 0:03:35][%cal Bf8c8,Bc8c4,Bc4b4,Bb4b3][%mdl 32]} 12. d5 {[%emt 0:13:49] White has an edge.} Na5 {[%emt 0:18:51][%csl LRb3,LRd5] The position is equal.} 13. Qxb4 {[%emt 0:01:05]} (13. Qd3 {is interesting.} Qc5 14. Ng5 exd5 15. cxd5 bxa3 16. Rxa3 Qb4 17. Nde4) 13... Qxb4 {[%emt 0:00:09][%mdl 64] [#] Remove Defender} 14. axb4 {[%emt 0:00:03]} Nxc4 {[%emt 0:00:06]} 15. Nxc4 {[%emt 0:00:07]} Rxc4 {[%emt 0:00:22]} 16. Ne5 {[%emt 0:00:29]} Rxb4 {[%emt 0:01:40]} 17. Nd3 {[%emt 0:10:14]} Rb3 {[%emt 0:03:50]} 18. dxe6 {[%emt 0:00:27]} Bxg2 {[%emt 0:00:36]} 19. exf7+ {[%emt 0:00:06]} Kxf7 {[%emt 0:00:12]} 20. Kxg2 {[%emt 0:00:04]} a5 {[%emt 0:00:23] [#] Not much happened in this game.   Weighted Error Value: White=0.08 (flawless) /Black=0.04 (flawless)} {Predecessor:} 21. Rfc1 $146 Ke7 22. Ra4 Ra7 23. g4 h6 24. h4 Rb5 25. Kg3 Kd8 26. Rac4 Ne8 27. Rc8+ {1-0 Bogner,S (2600)-Gurpreet,S (2247) Riga Tech op 7th 2017 (1)} 1/2-1/2

[Event "4NCL 2022-2023"]
[Site "Daventry"]
[Date "2023.02.12"]
[Round "6.29"]
[White "Kett, Tim"]
[Black "Han, Yichen"]
[Result "0-1"]
[ECO "C47"]
[WhiteElo "2130"]
[BlackElo "2399"]
[Annotator "TA"]
[PlyCount "196"]
[EventDate "2022.10.20"]
[EventType "team-tourn"]
[EventCountry "ENG"]
[SourceTitle "playchess.com"]
[Source "ChessBase"]
[SourceQuality "1"]
[TimeControl "40/6000+30:2400+30"]

{[%evp 21,196,2,10,3,0,0,3,-41,-27,-31,-39,-44,-30,-36,-33,-35,-39,-29,-18,-18,-18,-18,-18,-30,-32,-46,-19,-22,-22,-24,-25,-24,-17,-25,-22,-79,-17,-97,-17,-17,-8,-84,-82,-102,-64,-76,-50,-47,0,0,0,0,0,0,0,0,0,-16,-16,-16,-16,-16,-16,-16,-16,-31,-27,-27,-49,-32,-23,-54,-60,-175,-24,-47,-32,-95,-24,-235,-23,-69,0,-9,-9,-9,-9,-63,-71,-80,0,-9,-9,-9,-9,-9,-18,-25,-8,-8,-8,-8,0,-9,-9,-13,-8,-8,-8,-8,0,0,0,-8,-8,-8,-8,-8,-8,-252,-254,-427,0,-408,-400,-544,-397,-258,-196,-1349,-1145,-1748,-1360,-12845,-12848,-12845,-12842,-29938,-29937,-29937,-12848,-12839,-1769,-29961,-29962,-29958,-29962,-29969,-29962,-29973,-29976,-29975,-29977,-29974,-29978,-29971,-29972,-29982,-29984,-29990,-29990,-29990,-29986,-29986,-29986,-29986,-29983,-29983,-29984,-29991,-29992,-29996,-29997,-29997,-29998,-29998,-29999]} 1. e4 {[%emt 0:00:07]} e5 {[%emt 0:00:30]} 2. Nc3 {[%emt 0:02:38]} Nf6 {[%emt 0:01:27]} 3. g3 {[%emt 0:03:15]} d5 {[%emt 0:09:43]} 4. exd5 {[%emt 0:00:16]} Nxd5 {[%emt 0:00:07]} 5. Bg2 {[%emt 0:00:07]} Nxc3 {[%emt 0:09:43]} 6. bxc3 {[%emt 0:00:08]} Nc6 {[%emt 0:00:18]} 7. Nf3 {[%emt 0:01:45]} Be7 {[%emt 0:05:36]} 8. O-O {[%emt 0:00:29]} O-O {[%emt 0:00:26]} 9. Re1 {[%emt 0:01:20]} Bf6 {[%emt 0:00:35]} 10. d3 {[%emt 0:13:05]} Be6 {[%emt 0:06:38]} 11. Rb1 {[%emt 0:09:39]} Rb8 $1 {[%emt 0:03:28]} 12. c4 {[%emt 0:00:44] C47: Scotch Four Knights and Four Knights with 4 g3.} Re8 {[%emt 0:04:51]} 13. Nd2 {[%emt 0:04:05][%cal Ob1b7]} Qd7 {[%emt 0:03:30]} 14. Ne4 {[%emt 0:01:55] The position is equal.} Be7 $1 {[%emt 0:00:08]} 15. Be3 {[%emt 0:15:01]} b6 {[%emt 0:03:37]} 16. Ng5 {[%emt 0:08:02]} Bxg5 $1 {[%emt 0:04:04]} 17. Bxg5 {[%emt 0:03:26] [#]} Nd4 $146 {[%emt 0:02:50]} ({Predecessor:} 17... Bf5 18. Rb5 f6 19. Be3 Bg6 20. Qa1 a6 21. Rbb1 Nd4 22. Qb2 c5 23. c3 Ne6 {½-½ Sudakova,I (2358)-Ursic,M (2040) Bosnjaci op (Women) 2006 (8)}) 18. Be3 {[%emt 0:08:17]} (18. Rxe5 Bg4 19. Rxe8+ Rxe8 $17) 18... Bg4 {[%emt 0:04:45]} 19. f3 {[%emt 0:00:32]} Bh3 {[%emt 0:05:39]} 20. Bxh3 {[%emt 0:02:09]} Qxh3 {[%emt 0:00:09]} 21. Bxd4 {[%emt 0:00:08]} exd4 {[%emt 0:00:05]} 22. Re4 {[%emt 0:00:23]} Qd7 {[%emt 0:00:39]} 23. Qd2 {[%emt 0:20:24]} c5 {[%emt 0:04:48]} 24. Rbe1 {[%emt 0:00:30]} Rxe4 {[%emt 0:10:10]} 25. fxe4 $11 {[%emt 0:03:39][%mdl 4096] Endgame KQR-KQR} Qa4 {[%emt 0:00:44]} 26. Qf4 {[%emt 0:03:21]} Rf8 {[%emt 0:00:57]} 27. Re2 $1 {[%emt 0:00:12]} Qxa2 {[%emt 0:00:48]} 28. Qd6 {[%emt 0:02:40]} (28. Qc7 $1 $11 {keeps the balance.}) 28... Qb2 {[%emt 0:01:41]} (28... Qa6 $17) 29. e5 {[%emt 0:00:39]} (29. Kg2 $11 {remains equal.}) 29... Qa1+ {[%emt 0:04:16]} (29... Qc1+ $17 30. Kg2 Qh6 31. Qxh6 gxh6) 30. Kg2 {[%emt 0:00:08]} Qa6 {[%emt 0:00:31] Black wants to play ...Qb7+.} (30... Qd1 {feels hotter.} 31. Rf2 Qe1 32. Qc7 a5) 31. Qd5 {[%emt 0:03:26] Dodges Qb7} (31. Qd7 $11) 31... Qc8 $1 $17 {[%emt 0:00:54]} 32. e6 {[%emt 0:00:13]} fxe6 {[%emt 0:00:38]} 33. Rxe6 {[%emt 0:00:04]} Kh8 {[%emt 0:00:27]} (33... Qa8 $5 {[%cal Ra8d5]}) 34. Re7 {[%emt 0:00:22]} Qa8 {[%emt 0:03:34]} (34... a5 $15) 35. Qb7 $11 {[%emt 0:03:49]} Rb8 {[%emt 0:02:21][%mdl 64] Pin} 36. Qxa8 {[%emt 0:00:11][%mdl 64] Deflection} Rxa8 {[%emt 0:00:02] KR-KR} 37. Rb7 {[%emt 0:00:14]} Kg8 {[%emt 0:00:40]} 38. Kf3 $1 {[%emt 0:00:22]} Kf8 {[%emt 0:01:47]} 39. Ke4 {[%emt 0:00:23]} Re8+ {[%emt 0:06:32]} 40. Kd5 {[%emt 0:00:08]} Re7 {[%emt 0:02:05]} 41. Rb8+ {[%emt 0:41:59]} Kf7 {[%emt 0:42:52]} 42. Kc6 {[%emt 0:00:00]} Re6+ {[%emt 0:00:00]} 43. Kd5 {[%emt 0:00:00]} Re8 {[%emt 0:00:00]} 44. Rb7+ {[%emt 0:00:00]} Re7 {[%emt 0:00:00]} 45. Rb8 {[%emt 0:00:00]} Kf6 {[%emt 0:00:00]} 46. Ra8 {[%emt 0:00:00]} Kg5 {[%emt 0:00:00] White must now prevent ...Kg4.} 47. Rf8 {[%emt 0:00:00]} (47. Kd6 $15 Rf7 48. Ke6) 47... Kg6 $2 {[%emt 0:00:00]} (47... Kg4 $1 $19 {...h6 is the strong threat.} 48. Rf4+ Kh5) 48. Ra8 {[%emt 0:00:00]} h5 {[%emt 0:00:00]} 49. h3 {[%emt 0:00:00]} (49. Kc6 $1 $15) 49... Rf7 {[%emt 0:00:00]} (49... Kg5 $1 $17 {...h4 would be deadly.} 50. Kd6 Rf7) 50. Ke6 $2 {[%emt 0:00:00]} (50. Kc6 $1 $11) 50... Rf6+ $2 {[%emt 0:00:00]} (50... Rf3 $1 $19 {[%cal Rf3g3]} 51. Rxa7 Rxg3) 51. Ke5 {[%emt 0:00:00]} Rf7 {[%emt 0:00:00]} ({Black should play} 51... Rf3 $1 $15 52. Rxa7 Rxg3) 52. h4 {[%emt 0:00:00]} Re7+ {[%emt 0:00:00]} 53. Kf4 {[%emt 0:00:00]} Kf6 {[%emt 0:00:00][%cal Og7g5]} 54. Rf8+ {[%emt 0:00:00]} ({Better is} 54. Rh8 $11) 54... Rf7 $15 {[%emt 0:00:00]} 55. Ra8 {[%emt 0:00:00]} Kg6+ {[%emt 0:00:00]} ({Black should try} 55... a5 $17 56. Rb8 g5+ 57. Ke4 (57. hxg5+ Kg6+ 58. Ke5 Ra7 $17) 57... Re7+ 58. Kd5 Re5+ 59. Kc6 Re6+ 60. Kd7 Re7+ 61. Kd6 Re6+ 62. Kd7 Kf5) 56. Ke4 {[%emt 0:00:00]} Rb7 {[%emt 0:00:00]} 57. Rc8 {[%emt 0:00:00]} Re7+ {[%emt 0:00:00]} 58. Kf4 $1 {[%emt 0:00:00]} Rf7+ {[%emt 0:00:00]} 59. Ke4 $1 {[%emt 0:00:00]} Rf1 {[%emt 0:00:34]} 60. Rc6+ {[%emt 0:00:00]} Rf6 {[%emt 0:02:54]} 61. Rc7 {[%emt 0:00:00]} Rf7 {[%emt 0:00:16]} 62. Rc6+ {[%emt 0:00:00]} Kh7 {[%emt 0:00:07]} 63. Rc8 {[%emt 0:00:00]} Rf2 {[%emt 0:02:12]} 64. Rc7 {[%emt 0:00:00]} Rxc2 {[%emt 0:03:27]} 65. Rxa7 {[%emt 0:00:00]} Re2+ {[%emt 0:00:04]} 66. Kd5 {[%emt 0:01:34]} Re3 {[%emt 0:00:22][%csl LRd3,LRg3]} 67. Rb7 {[%emt 0:03:38]} Rxd3 {[%emt 0:00:27]} 68. Rxb6 {[%emt 0:00:03]} Rxg3 {[%emt 0:00:07] Hoping for ...Rg4.} 69. Kxc5 {[%emt 0:00:06]} Rg4 {[%emt 0:00:23]} 70. Rd6 $2 {[%emt 0:04:14] White is on the road to losing.} (70. Kd5 $1 $11 {and White is okay.}) 70... Rxh4 $19 {[%emt 0:00:09]} 71. Kb6 $2 {[%emt 0:00:14] [#]} (71. Rd5 Kh6 72. Kb5) 71... d3 $2 {[%emt 0:03:58]} 72. c5 $2 {[%emt 0:00:05][%mdl 8192]} (72. Kb5 $1 $11 {and White has nothing to worry.}) 72... Rb4+ {[%emt 0:01:57]} 73. Ka5 {[%emt 0:02:16]} Rc4 {[%emt 0:00:51]} 74. Kb6 {[%emt 0:01:01]} h4 {[%emt 0:01:15]} 75. c6 $2 {[%emt 0:00:53]} (75. Rxd3 g5 76. Kb5) 75... g5 $1 {[%emt 0:03:28][%cal Bg7g5,Bg5g4][%mdl 32]} ({And not} 75... h3 76. Rxd3 g5 77. Rxh3+ Kg6 78. Rh8 $11) 76. Rxd3 {[%emt 0:01:08] [#]} g4 $1 {[%emt 0:00:45]} 77. c7 {[%emt 0:00:17] [#]} Rxc7 $3 {[%emt 0:00:32][%mdl 512]} 78. Kxc7 {[%emt 0:00:06] KR-KPP} h3 {[%emt 0:00:11]} 79. Rd7+ {[%emt 0:01:57]} Kg6 {[%emt 0:00:12]} 80. Rd8 {[%emt 0:00:06]} h2 {[%emt 0:00:41]} 81. Rh8 {[%emt 0:00:39]} g3 {[%emt 0:00:03] ( -> ...g2)} 82. Rg8+ {[%emt 0:00:05]} Kf7 {[%emt 0:00:31] Black mates.} 83. Rxg3 {[%emt 0:00:38]} h1=Q {[%emt 0:00:04] KQ-KR} ({Inferior is} 83... h1=R 84. Kd6 $11) 84. Rc3 {[%emt 0:01:02]} Qd5 {[%emt 0:00:14]} 85. Rc6 {[%emt 0:00:26]} Ke7 {[%emt 0:00:09]} 86. Kb6 {[%emt 0:00:13]} Kd7 {[%emt 0:00:21]} 87. Rc5 {[%emt 0:00:34]} Qb3+ {[%emt 0:00:28]} 88. Rb5 {[%emt 0:00:29]} Qe3+ {[%emt 0:00:06]} 89. Kb7 {[%emt 0:00:29]} Qd4 {[%emt 0:01:17]} 90. Rh5 {[%emt 0:01:51]} Qb2+ {[%emt 0:00:28]} 91. Ka7 {[%emt 0:00:15]} Qa3+ {[%emt 0:01:33]} 92. Kb6 {[%emt 0:00:30]} Qe3+ {[%emt 0:00:22]} 93. Ka5 {[%emt 0:00:17]} Kc6 {[%emt 0:00:27][%cal Re3a3]} 94. Kb4 {[%emt 0:01:10]} Qe4+ {[%emt 0:00:07]} 95. Ka5 {[%emt 0:00:29]} Qe1+ {[%emt 0:00:05]} 96. Ka6 {[%emt 0:00:13]} Qa1+ {[%emt 0:00:14]} 97. Ra5 {[%emt 0:01:47]} Qf1+ {[%emt 0:00:03]} 98. Ka7 {[%emt 0:00:00]} Qf7+ {[%emt 0:00:04] Weighted Error Value: White=0.24 (precise) /Black=0.26 (precise)} 0-1